bitfinex/quotes_BTCUSD_20241020
["timestamp","ask_amount","ask_price","bid_price","bid_amount"]
[1729388292949,0.25275843,68179.0,68178.0,0.00087236]
[1729388293190,0.25275843,68179.0,68178.0,0.01549407]
[1729388300561,0.25275843,68179.0,68178.0,0.24126807]
[1729388300782,0.25275843,68179.0,68178.0,0.16216807]
[1729388303530,0.25275843,68179.0,68178.0,0.01549407]
[1729388304634,0.25275843,68179.0,68178.0,0.16216807]
[1729388321321,0.25275843,68179.0,68178.0,0.15716807]
[1729388322773,0.25275843,68179.0,68178.0,0.15799507]
[1729388341548,0.25275843,68179.0,68178.0,0.01132107]
[1729388346211,0.25275843,68179.0,68178.0,0.15799507]
[1729388355955,0.27438487,68179.0,68178.0,0.15799507]
[1729388360052,0.25275843,68179.0,68178.0,0.15799507]
[1729388370602,0.25250976,68179.0,68178.0,0.15799507]
[1729388372258,0.25250976,68179.0,68178.0,0.01132107]
[1729388383196,0.25250976,68179.0,68178.0,0.15799507]
[1729388388248,0.42210976,68179.0,68178.0,0.01132107]
[1729388388493,0.42210976,68179.0,68178.0,0.000827]
[1729388388954,0.42210976,68179.0,68178.0,0.01319848]
[1729388389215,0.42210976,68179.0,68178.0,0.000827]
[1729388389440,0.42210976,68179.0,68178.0,0.01319848]
[1729388389661,0.42210976,68179.0,68178.0,0.147501]
[1729388389883,0.42210976,68179.0,68178.0,0.15987248]
[1729388393377,0.34260976,68179.0,68178.0,0.15987248]
[1729388396740,0.25250976,68179.0,68178.0,0.15987248]
[1729388400649,0.24750976,68179.0,68178.0,0.16280575]
[1729388400892,0.24750976,68179.0,68178.0,0.26720575]
[1729388401361,0.09855061,68179.0,68178.0,0.41187127]
[1729388401848,0.09855061,68179.0,68178.0,0.34587248]
[1729388402546,0.09855061,68179.0,68178.0,0.41183427]
[1729388403269,0.24750976,68179.0,68178.0,0.34587248]
[1729388403550,0.24750976,68179.0,68178.0,0.38984114]
[1729388403790,0.24750976,68179.0,68178.0,0.3898406]
[1729388404010,0.24750976,68179.0,68178.0,0.34587248]
[1729388405641,0.24750976,68179.0,68178.0,0.38982838]
[1729388407289,0.24750976,68179.0,68178.0,0.34587248]
[1729388407720,0.24750976,68179.0,68178.0,0.38982838]
[1729388407937,0.24750976,68179.0,68178.0,0.34587248]
[1729388413195,0.24750976,68179.0,68178.0,0.26427248]
[1729388416890,0.24750976,68179.0,68178.0,0.16487248]
[1729388430565,0.24750976,68179.0,68178.0,0.1685828]
[1729388431692,0.24750976,68179.0,68178.0,0.16397632]
[1729388437250,0.24750976,68179.0,68178.0,0.20791442]
[1729388437917,0.15061515,68179.0,68178.0,0.20791442]
[1729388438592,0.15061515,68179.0,68178.0,0.16397632]
[1729388439274,0.15061515,68179.0,68178.0,0.20792824]
[1729388439708,0.15061515,68179.0,68178.0,0.16397632]
[1729388441049,0.15061515,68179.0,68178.0,0.22991135]
[1729388441561,0.15061515,68179.0,68178.0,0.16397632]
[1729388441794,0.15061515,68179.0,68178.0,0.22991135]
[1729388442697,0.15061515,68179.0,68178.0,0.16397632]
[1729388444156,0.15061515,68179.0,68178.0,0.27386804]
[1729388444377,0.15061515,68179.0,68178.0,0.25193817]
[1729388444623,0.001656,68179.0,68178.0,0.27386804]
[1729388444853,0.001656,68179.0,68178.0,0.16397632]
[1729388445308,0.001656,68179.0,68178.0,0.25195234]
[1729388445534,0.001656,68179.0,68178.0,0.16397632]
[1729388445756,0.001656,68179.0,68178.0,0.27386804]
[1729388445975,0.001656,68179.0,68178.0,0.16397632]
[1729388446414,0.001656,68179.0,68178.0,0.27386804]
[1729388446644,0.001656,68179.0,68178.0,0.16397632]
[1729388448864,0.001656,68179.0,68178.0,0.27386804]
[1729388449781,0.001656,68179.0,68178.0,0.16397632]
[1729388451592,0.001656,68179.0,68178.0,0.25197364]
[1729388451811,0.001656,68179.0,68178.0,0.25197389]
[1729388452023,0.001656,68179.0,68178.0,0.16397632]
[1729388453376,0.15061515,68179.0,68178.0,0.15897632]
[1729388453606,0.15061515,68179.0,68178.0,0.20297809]
[1729388453607,0.42241948,68179.0,68178.0,0.20297809]
[1729388453844,0.42241948,68179.0,68178.0,0.15897632]
[1729388454084,0.42241948,68179.0,68178.0,0.20297775]
[1729388454574,0.42241948,68179.0,68178.0,0.20297814]
[1729388455023,0.43614465,68179.0,68178.0,0.20297814]
[1729388455254,0.43614446,68179.0,68178.0,0.15897632]
[1729388455723,0.42241948,68179.0,68178.0,0.20297814]
[1729388456853,0.42241948,68179.0,68178.0,0.15897632]
[1729388457116,0.42241948,68179.0,68178.0,0.2029689]
[1729388457336,0.42241948,68179.0,68178.0,0.15897632]
[1729388457563,0.42241948,68179.0,68178.0,0.20296842]
[1729388458525,0.42241948,68179.0,68178.0,0.20296769]
[1729388459374,0.42241948,68179.0,68178.0,0.20296603]
[1729388459586,0.42241948,68179.0,68178.0,0.15897632]
[1729388462648,0.34531948,68179.0,68178.0,0.15897632]
[1729388464699,0.24491948,68179.0,68178.0,0.15897632]
[1729388464905,0.24991948,68179.0,68178.0,0.2299534]
[1729388465662,0.24991948,68179.0,68178.0,0.16397632]
[1729388465878,0.24991948,68179.0,68178.0,0.20795919]
[1729388467499,0.24991948,68179.0,68178.0,0.20295919]
[1729388467693,0.24991948,68179.0,68178.0,0.20295862]
[1729388471154,0.34691948,68179.0,68178.0,0.20295862]
[1729388475072,0.34691948,68179.0,68178.0,0.15897632]
[1729388483360,0.34691948,68179.0,68178.0,0.20295535]
[1729388483574,0.34691948,68179.0,68178.0,0.15897632]
[1729388487162,0.34691948,68179.0,68178.0,0.20295535]
[1729388487381,0.34691948,68179.0,68178.0,0.15897632]
[1729388488789,0.34691948,68179.0,68178.0,0.2029562]
[1729388489008,0.34691948,68179.0,68178.0,0.15897632]
[1729388489238,0.36064864,68179.0,68178.0,0.2029562]
[1729388489469,0.34691948,68179.0,68178.0,0.2029562]
[1729388489670,0.36064861,68179.0,68178.0,0.15897632]
[1729388495707,0.3606453,68179.0,68178.0,0.15897632]
[1729388499357,0.36064619,68179.0,68178.0,0.15897632]
[1729388499804,0.36064578,68179.0,68178.0,0.15897632]
[1729388502738,0.36064578,68179.0,68178.0,0.20297515]
[1729388502971,0.36064709,68179.0,68178.0,0.05630115]
[1729388503229,0.44094709,68179.0,68178.0,0.15897632]
[1729388503457,0.45192865,68179.0,68178.0,0.15897632]
[1729388503688,0.45192865,68179.0,68178.0,0.01230232]
[1729388503907,0.67312631,68179.0,68178.0,0.01230232]
[1729388504132,0.52645431,68179.0,68178.0,0.000827]
[1729388504797,0.45192865,68179.0,68178.0,0.000827]
[1729388505310,0.45192865,68179.0,68178.0,0.0123063]
[1729388505511,0.45192865,68179.0,68178.0,0.000827]
[1729388506001,0.45192865,68179.0,68178.0,0.0123063]
[1729388506212,0.45192865,68179.0,68178.0,0.1589803]
[1729388506658,0.44093815,68179.0,68178.0,0.1589803]
[1729388506873,0.45191309,68179.0,68178.0,0.1589803]
[1729388507563,0.51392264,68179.0,68178.0,0.1589803]
[1729388510223,0.50294614,68179.0,68178.0,0.1589803]
[1729388510425,0.51391983,68179.0,68178.0,0.1589803]
[1729388510851,0.45191028,68179.0,68178.0,0.1589803]
[1729388513835,0.42721948,68179.0,68178.0,0.1589803]
[1729388514053,0.45190919,68179.0,68178.0,0.1589803]
[1729388517727,0.45190876,68179.0,68178.0,0.1589803]
[1729388522783,0.4519097,68179.0,68178.0,0.1589803]
[1729388523955,0.44093693,68179.0,68178.0,0.1589803]
[1729388524197,0.45191162,68179.0,68178.0,0.1589803]
[1729388531532,0.45191942,68179.0,68178.0,0.1589803]
[1729388535350,0.45192141,68179.0,68178.0,0.1589803]
[1729388539118,0.45192765,68179.0,68178.0,0.1589803]
[1729388541849,0.37162765,68179.0,68178.0,0.1589803]
[1729388542533,0.27462765,68179.0,68178.0,0.2566803]
[1729388542754,0.26364627,68179.0,68178.0,0.2566803]
[1729388543007,0.26364627,68179.0,68178.0,0.30066315]
[1729388543232,0.26364703,68179.0,68178.0,0.2566803]
[1729388544833,0.1693427,68179.0,68178.0,0.2566803]
[1729388545051,0.15561515,68179.0,68178.0,0.30066315]
[1729388545289,0.15561515,68179.0,68178.0,0.32265457]
[1729388545506,0.15561515,68179.0,68178.0,0.3226433]
[1729388545729,0.15561515,68179.0,68178.0,0.3276433]
[1729388545869,0.15561515,68179.0,68178.0,0.4028433]
[1729388546473,0.15561515,68179.0,68178.0,0.3368803]
[1729388546474,0.001656,68179.0,68178.0,0.3368803]
[1729388547228,0.001656,68179.0,68178.0,0.42480193]
[1729388548137,0.001656,68179.0,68178.0,0.3368803]
[1729388549422,0.001656,68179.0,68178.0,0.42480193]
[1729388550056,0.001656,68179.0,68178.0,0.3368803]
[1729388552496,0.001656,68179.0,68178.0,0.40277695]
[1729388552933,0.001656,68179.0,68178.0,0.3368803]
[1729388553159,0.001656,68179.0,68178.0,0.38080989]
[1729388557283,0.001656,68179.0,68178.0,0.20790989]
[1729388557499,0.001656,68179.0,68178.0,0.20180989]
[1729388557722,0.001656,68179.0,68178.0,0.20678282]
[1729388560702,0.001656,68179.0,68178.0,0.16285323]
[1729388560918,0.001656,68179.0,68178.0,0.20678282]
[1729388561355,0.001656,68179.0,68178.0,0.16285323]
[1729388563541,0.001656,68179.0,68178.0,0.16368023]
[1729388565074,0.001656,68179.0,68178.0,0.15868023]
[1729388565288,0.001656,68179.0,68178.0,0.16368023]
[1729388566750,0.001656,68179.0,68178.0,0.15868023]
[1729388566956,0.001656,68179.0,68178.0,0.16368023]
[1729388568019,0.15061515,68179.0,68178.0,0.16368023]
[1729388572100,0.15061515,68179.0,68178.0,0.15868023]
[1729388574570,0.15061515,68179.0,68178.0,0.20260726]
[1729388575006,0.15061515,68179.0,68178.0,0.15868023]
[1729388575229,0.15061515,68179.0,68178.0,0.20260726]
[1729388577987,0.15061515,68179.0,68178.0,0.15868023]
[1729388578192,0.15061515,68179.0,68178.0,0.20260726]
[1729388578586,0.15061515,68179.0,68178.0,0.15868023]
[1729388578785,0.15061515,68179.0,68178.0,0.20261772]
[1729388580342,0.24724503,68179.0,68178.0,0.15868023]
[1729388580557,0.45246953,68179.0,68178.0,0.15868023]
[1729388580989,0.46619841,68179.0,68178.0,0.15868023]
[1729388581490,0.45246953,68179.0,68178.0,0.15868023]
[1729388582230,0.46619703,68179.0,68178.0,0.15868023]
[1729388582969,0.45246953,68179.0,68178.0,0.15868023]
[1729388583452,0.42724503,68179.0,68178.0,0.15868023]
[1729388586342,0.42724503,68179.0,68178.0,0.202623]
[1729388586548,0.42724503,68179.0,68178.0,0.20264716]
[1729388587369,0.42724503,68179.0,68178.0,0.15868023]
[1729388588057,0.34574503,68179.0,68178.0,0.15868023]
[1729388588290,0.24724503,68179.0,68178.0,0.22463062]
[1729388588766,0.24724503,68179.0,68178.0,0.15868023]
[1729388589244,0.24724503,68179.0,68178.0,0.2246516]
[1729388589455,0.24724503,68179.0,68178.0,0.15868023]
[1729388589928,0.24724503,68179.0,68178.0,0.22465203]
[1729388590181,0.24724503,68179.0,68178.0,0.15868023]
[1729388590409,0.24724503,68179.0,68178.0,0.24661409]
[1729388590649,0.24724503,68179.0,68178.0,0.15868023]
[1729388590847,0.24724503,68179.0,68178.0,0.24664679]
[1729388591292,0.24724503,68179.0,68178.0,0.22465777]
[1729388591539,0.24724503,68179.0,68178.0,0.24664679]
[1729388591974,0.24724503,68179.0,68178.0,0.15868023]
[1729388595461,0.24724503,68179.0,68178.0,0.24664679]
[1729388595866,0.24724503,68179.0,68178.0,0.15868023]
[1729388596077,0.24724503,68179.0,68178.0,0.24664679]
[1729388596288,0.24724503,68179.0,68178.0,0.15868023]
[1729388596519,0.24724503,68179.0,68178.0,0.22466017]
[1729388597605,0.35697088,68179.0,68178.0,0.15868023]
[1729388597810,0.34324503,68179.0,68178.0,0.22466017]
[1729388598224,0.34324503,68179.0,68178.0,0.15868023]
[1729388598433,0.34324503,68179.0,68178.0,0.22466017]
[1729388600512,0.43957053,68179.0,68178.0,0.15868023]
[1729388600806,0.42584503,68179.0,68178.0,0.22466017]
[1729388601261,0.43957101,68179.0,68178.0,0.22466017]
[1729388601472,0.43957101,68179.0,68178.0,0.15868023]
[1729388601690,0.43957101,68179.0,68178.0,0.22466017]
[1729388601909,0.42584503,68179.0,68178.0,0.22466017]
[1729388602833,0.42584503,68179.0,68178.0,0.15868023]
[1729388603246,0.42584503,68179.0,68178.0,0.22466323]
[1729388603458,0.42584503,68179.0,68178.0,0.15868023]
[1729388603684,0.34324503,68179.0,68178.0,0.24665348]
[1729388604132,0.24724503,68179.0,68178.0,0.15868023]
[1729388605219,0.2609722,68179.0,68178.0,0.22466445]
[1729388606277,0.2609722,68179.0,68178.0,0.22466551]
[1729388607363,0.2609722,68179.0,68178.0,0.15868023]
[1729388607364,0.26097372,68179.0,68178.0,0.15868023]
[1729388607597,0.24724503,68179.0,68178.0,0.15868023]
[1729388607809,0.26097373,68179.0,68178.0,0.2246678]
[1729388608266,0.24724503,68179.0,68178.0,0.15868023]
[1729388608683,0.26097416,68179.0,68178.0,0.15868023]
[1729388611548,0.24724503,68179.0,68178.0,0.24666576]
[1729388613218,0.26097497,68179.0,68178.0,0.24666576]
[1729388614255,0.24724503,68179.0,68178.0,0.24666576]
[1729388614534,0.26097473,68179.0,68178.0,0.24666576]
[1729388614730,0.26097472,68179.0,68178.0,0.24666576]
[1729388615115,0.26097475,68179.0,68178.0,0.24666576]
[1729388615737,0.26097475,68179.0,68178.0,0.15868023]
[1729388616170,0.35877475,68179.0,68178.0,0.15868023]
[1729388616403,0.35877475,68179.0,68178.0,0.22467286]
[1729388616621,0.35877475,68179.0,68178.0,0.15868023]
[1729388618297,0.35877528,68179.0,68178.0,0.15868023]
[1729388618511,0.35877528,68179.0,68178.0,0.22467325]
[1729388618725,0.35877528,68179.0,68178.0,0.15868023]
[1729388621933,0.35877528,68179.0,68178.0,0.24666576]
[1729388623505,0.35877528,68179.0,68178.0,0.15868023]
[1729388624064,0.35877528,68179.0,68178.0,0.24666576]
[1729388625513,0.35877618,68179.0,68178.0,0.24666576]
[1729388625929,0.35877618,68179.0,68178.0,0.15868023]
[1729388626131,0.35877618,68179.0,68178.0,0.20268159]
[1729388626339,0.38074499,68179.0,68178.0,0.20268159]
[1729388627250,0.34504503,68179.0,68178.0,0.15868023]
[1729388627458,0.38073643,68179.0,68178.0,0.15868023]
[1729388627663,0.35877249,68179.0,68178.0,0.20268159]
[1729388627869,0.38073684,68179.0,68178.0,0.15868023]
[1729388628086,0.38073684,68179.0,68178.0,0.20268159]
[1729388628087,0.35877249,68179.0,68178.0,0.20268159]
[1729388628293,0.35877249,68179.0,68178.0,0.15868023]
[1729388628508,0.35877249,68179.0,68178.0,0.20268159]
[1729388629717,0.35877106,68179.0,68178.0,0.20268159]
[1729388630625,0.35877106,68179.0,68178.0,0.15868023]
[1729388630866,0.35877106,68179.0,68178.0,0.20267457]
[1729388634795,0.35877106,68179.0,68178.0,0.20267065]
[1729388634945,0.35877106,68179.0,68178.0,0.15868023]
[1729388635900,0.35877106,68179.0,68178.0,0.22467175]
[1729388636097,0.35877106,68179.0,68178.0,0.15868023]
[1729388636371,0.35876991,68179.0,68178.0,0.15868023]
[1729388636600,0.35876991,68179.0,68178.0,0.20267095]
[1729388637595,0.35876991,68179.0,68178.0,0.15868023]
[1729388639006,0.35876991,68179.0,68178.0,0.20267035]
[1729388639251,0.35876991,68179.0,68178.0,0.15868023]
[1729388640055,0.35876906,68179.0,68178.0,0.15868023]
[1729388641226,0.35876906,68179.0,68178.0,0.20267035]
[1729388641465,0.35876906,68179.0,68178.0,0.15868023]
[1729388642151,0.38072689,68179.0,68178.0,0.15868023]
[1729388642420,0.35876906,68179.0,68178.0,0.15868023]
[1729388642658,0.38072672,68179.0,68178.0,0.15868023]
[1729388643284,0.35876906,68179.0,68178.0,0.15868023]
[1729388643862,0.3917055,68179.0,68178.0,0.15868023]
[1729388645002,0.3967055,68179.0,68178.0,0.15868023]
[1729388645256,0.52303605,68179.0,68178.0,0.15868023]
[1729388645923,0.48735439,68179.0,68178.0,0.15868023]
[1729388646145,0.52302845,68179.0,68178.0,0.15868023]
[1729388649602,0.4750979,68179.0,68178.0,0.15868023]
[1729388649821,0.46411909,68179.0,68178.0,0.15868023]
[1729388650052,0.475093,68179.0,68178.0,0.15868023]
[1729388651427,0.4750847,68179.0,68178.0,0.15868023]
[1729388652561,0.38571079,68179.0,68178.0,0.15868023]
[1729388652833,0.28791079,68179.0,68178.0,0.15868023]
[1729388653297,0.28791308,68179.0,68178.0,0.15868023]
[1729388653540,0.29888786,68179.0,68178.0,0.15868023]
[1729388653755,0.28791308,68179.0,68178.0,0.15868023]
[1729388654402,0.29888846,68179.0,68178.0,0.15868023]
[1729388655098,0.36776986,68179.0,68178.0,0.15868023]
[1729388656184,0.53746986,68179.0,68178.0,0.15868023]
[1729388657091,0.50454491,68179.0,68178.0,0.15868023]
[1729388657314,0.52649741,68179.0,68178.0,0.15868023]
[1729388657526,0.53747366,68179.0,68178.0,0.15868023]
[1729388659345,0.53747376,68179.0,68178.0,0.15868023]
[1729388662029,0.50180278,68179.0,68178.0,0.15868023]
[1729388662244,0.53747733,68179.0,68178.0,0.15868023]
[1729388664131,0.52650098,68179.0,68178.0,0.15868023]
[1729388664364,0.53747816,68179.0,68178.0,0.15868023]
[1729388667816,0.49082643,68179.0,68178.0,0.15868023]
[1729388668034,0.53748801,68179.0,68178.0,0.15868023]
[1729388669339,0.46860661,68179.0,68178.0,0.15868023]
[1729388671960,0.44390667,68179.0,68178.0,0.15868023]
[1729388672151,0.46861351,68179.0,68178.0,0.15868023]
[1729388683294,0.46862495,68179.0,68178.0,0.15868023]
[1729388683541,0.46862847,68179.0,68178.0,0.15868023]
[1729388683788,0.29892847,68179.0,68178.0,0.15868023]
[1729388686971,0.26322937,68179.0,68178.0,0.15868023]
[1729388687205,0.33464279,68179.0,68178.0,0.15868023]
[1729388687420,0.34562916,68179.0,68178.0,0.15868023]
[1729388688597,0.38196915,68179.0,68178.0,0.15868023]
[1729388690856,0.34562916,68179.0,68178.0,0.15868023]
[1729388694380,0.2989371,68179.0,68178.0,0.15868023]
[1729388694865,0.28795073,68179.0,68178.0,0.15868023]
[1729388695085,0.29893818,68179.0,68178.0,0.15868023]
[1729388698547,0.29894242,68179.0,68178.0,0.15868023]
[1729388698794,0.47354242,68179.0,68178.0,0.15868023]
[1729388699015,0.47354242,68179.0,68178.0,0.01200623]
[1729388700824,0.47354242,68179.0,68178.0,0.15868023]
[1729388701048,0.47354242,68179.0,68178.0,0.01200623]
[1729388701300,0.49650314,68179.0,68178.0,0.01200623]
[1729388702873,0.49650314,68179.0,68178.0,0.15868023]
[1729388704503,0.46255481,68179.0,68178.0,0.15868023]
[1729388704719,0.47353533,68179.0,68178.0,0.15868023]
[1729388704934,0.47353533,68179.0,68178.0,0.147501]
[1729388705377,0.47353533,68179.0,68178.0,0.15869184]
[1729388713677,0.47351287,68179.0,68178.0,0.15869184]
[1729388715663,0.47351358,68179.0,68178.0,0.15869184]
[1729388720654,0.45155215,68179.0,68178.0,0.15869184]
[1729388722381,0.44057092,68179.0,68178.0,0.15869184]
[1729388722597,0.45155368,68179.0,68178.0,0.15869184]
[1729388722798,0.47351874,68179.0,68178.0,0.15869184]
[1729388723269,0.47352101,68179.0,68178.0,0.15869184]
[1729388723482,0.46253893,68179.0,68178.0,0.15869184]
[1729388723710,0.47352167,68179.0,68178.0,0.15869184]
[1729388723916,0.36885619,68179.0,68178.0,0.15869184]
[1729388724370,0.27695619,68179.0,68178.0,0.15869184]
[1729388725537,0.16434357,68179.0,68178.0,0.33809184]
[1729388725754,0.16434357,68179.0,68178.0,0.40408156]
[1729388725985,0.15061515,68179.0,68178.0,0.33809184]
[1729388726653,0.15061515,68179.0,68178.0,0.40406313]
[1729388729202,0.15061515,68179.0,68178.0,0.33809184]
[1729388729689,0.15061515,68179.0,68178.0,0.40406313]
[1729388730110,0.15061515,68179.0,68178.0,0.33809184]
[1729388732314,0.15061515,68179.0,68178.0,0.38204797]
[1729388739321,0.15061515,68179.0,68178.0,0.33809184]
[1729388742777,0.15061515,68179.0,68178.0,0.15869184]
[1729388742983,0.2460113,68179.0,68178.0,0.15869184]
[1729388744223,0.25972236,68179.0,68178.0,0.15869184]
[1729388744452,0.35022236,68179.0,68178.0,0.15869184]
[1729388745578,0.42832236,68179.0,68178.0,0.15869184]
[1729388747133,0.35022236,68179.0,68178.0,0.15869184]
[1729388747738,0.35022478,68179.0,68178.0,0.15869184]
[1729388749443,0.3365113,68179.0,68178.0,0.15869184]
[1729388749576,0.35022653,68179.0,68178.0,0.15869184]
[1729388750194,0.25972653,68179.0,68178.0,0.15869184]
[1729388751298,0.2460113,68179.0,68178.0,0.15869184]
[1729388751512,0.2597303,68179.0,68178.0,0.15869184]
[1729388754968,0.25973523,68179.0,68178.0,0.15869184]
[1729388757698,0.2597362,68179.0,68178.0,0.15869184]
[1729388758583,0.2460113,68179.0,68178.0,0.15869184]
[1729388758779,0.25973606,68179.0,68178.0,0.15869184]
[1729388764938,0.25973616,68179.0,68178.0,0.15869184]
[1729388768401,0.25973616,68179.0,68178.0,0.20266533]
[1729388768644,0.25973779,68179.0,68178.0,0.20266533]
[1729388768891,0.25973777,68179.0,68178.0,0.20266533]
[1729388769576,0.25973777,68179.0,68178.0,0.15869184]
[1729388770216,0.25973777,68179.0,68178.0,0.20266911]
[1729388770443,0.25973777,68179.0,68178.0,0.15869184]
[1729388770886,0.25973777,68179.0,68178.0,0.22465208]
[1729388771354,0.25973777,68179.0,68178.0,0.15869184]
[1729388771583,0.25973777,68179.0,68178.0,0.20267668]
[1729388772278,0.30069155,68179.0,68178.0,0.05600268]
[1729388772512,0.49375673,68179.0,68178.0,0.15869184]
[1729388772770,0.45780295,68179.0,68178.0,0.15869184]
[1729388773912,0.4221113,68179.0,68178.0,0.15869184]
[1729388774133,0.45780436,68179.0,68178.0,0.15869184]
[1729388775591,0.4221113,68179.0,68178.0,0.15869184]
[1729388775823,0.45780612,68179.0,68178.0,0.15869184]
[1729388782825,0.45779716,68179.0,68178.0,0.15869184]
[1729388788958,0.38149716,68179.0,68178.0,0.15869184]
[1729388789181,0.28669716,68179.0,68178.0,0.15869184]
[1729388797677,0.27297138,68179.0,68178.0,0.15869184]
[1729388797885,0.28669643,68179.0,68178.0,0.15869184]
[1729388801703,0.28670555,68179.0,68178.0,0.15869184]
[1729388801928,0.2510113,68179.0,68178.0,0.15869184]
[1729388802155,0.28670568,68179.0,68178.0,0.15869184]
[1729388805457,0.2510113,68179.0,68178.0,0.15869184]
[1729388805673,0.27298082,68179.0,68178.0,0.15869184]
[1729388805885,0.28671177,68179.0,68178.0,0.15869184]
[1729388808401,0.51210341,68179.0,68178.0,0.01201784]
[1729388808626,0.65877541,68179.0,68178.0,0.01201784]
[1729388808852,0.65877541,68179.0,68178.0,0.000827]
[1729388809074,0.65877541,68179.0,68178.0,0.01270307]
[1729388809075,0.51210341,68179.0,68178.0,0.01270307]
[1729388809311,0.51210341,68179.0,68178.0,0.000827]
[1729388810880,0.51210341,68179.0,68178.0,0.01270534]
[1729388811141,0.51210341,68179.0,68178.0,0.000827]
[1729388811368,0.51210341,68179.0,68178.0,0.01270534]
[1729388813225,0.4641983,68179.0,68178.0,0.01270534]
[1729388817125,0.4285113,68179.0,68178.0,0.01270534]
[1729388817333,0.4641899,68179.0,68178.0,0.01270534]
[1729388821361,0.4641899,68179.0,68178.0,0.15937934]
[1729388821574,0.3811899,68179.0,68178.0,0.15937934]
[1729388821811,0.2866899,68179.0,68178.0,0.15937934]
[1729388823836,0.2866899,68179.0,68178.0,0.01270534]
[1729388826338,0.2866899,68179.0,68178.0,0.15937934]
[1729388827211,0.28668936,68179.0,68178.0,0.15937934]
[1729388831128,0.28669045,68179.0,68178.0,0.15937934]
[1729388831604,0.28669045,68179.0,68178.0,0.01270534]
[1729388832509,0.28669045,68179.0,68178.0,0.15937934]
[1729388833204,0.28669045,68179.0,68178.0,0.01270534]
[1729388833436,0.33444995,68179.0,68178.0,0.15937934]
[1729388834170,0.46149287,68179.0,68178.0,0.01270534]
[1729388835310,0.46149287,68179.0,68178.0,0.15937934]
[1729388842407,0.44777455,68179.0,68178.0,0.15937934]
[1729388842656,0.28670158,68179.0,68178.0,0.15937934]
[1729388846102,0.28670075,68179.0,68178.0,0.15937934]
[1729388846315,0.2510113,68179.0,68178.0,0.15937934]
[1729388846584,0.28670109,68179.0,68178.0,0.15937934]
[1729388853290,0.26473853,68179.0,68178.0,0.15937934]
[1729388853456,0.30042932,68179.0,68178.0,0.15937934]
[1729388855163,0.30042932,68179.0,68178.0,0.01270534]
[1729388855403,0.51358528,68179.0,68178.0,0.01270534]
[1729388855833,0.51358528,68179.0,68178.0,0.000827]
[1729388857057,0.51358422,68179.0,68178.0,0.000827]
[1729388857912,0.51358422,68179.0,68178.0,0.01271303]
[1729388858151,0.51358422,68179.0,68178.0,0.000827]
[1729388858361,0.51358422,68179.0,68178.0,0.01271303]
[1729388858579,0.51358422,68179.0,68178.0,0.000827]
[1729388858795,0.51358422,68179.0,68178.0,0.01271303]
[1729388859013,0.51358422,68179.0,68178.0,0.000827]
[1729388859235,0.51358422,68179.0,68178.0,0.01271303]
[1729388860855,0.51358422,68179.0,68178.0,0.000827]
[1729388861316,0.52456584,68179.0,68178.0,0.000827]
[1729388864261,0.52456553,68179.0,68178.0,0.01271422]
[1729388865607,0.47038234,68179.0,68178.0,0.01271422]
[1729388866274,0.4703826,68179.0,68178.0,0.01271422]
[1729388868074,0.4703826,68179.0,68178.0,0.000827]
[1729388868075,0.47038214,68179.0,68178.0,0.000827]
[1729388868299,0.45940083,68179.0,68178.0,0.000827]
[1729388869185,0.45940083,68179.0,68178.0,0.01271129]
[1729388869455,0.45940083,68179.0,68178.0,0.000827]
[1729388869678,0.45940083,68179.0,68178.0,0.01271129]
[1729388869884,0.45940083,68179.0,68178.0,0.000827]
[1729388871227,0.57348157,68179.0,68178.0,0.000827]
[1729388871868,0.45940083,68179.0,68178.0,0.000827]
[1729388872552,0.45940083,68179.0,68178.0,0.01271129]
[1729388872764,0.45940083,68179.0,68178.0,0.000827]
[1729388872979,0.45940083,68179.0,68178.0,0.01271129]
[1729388873191,0.45940083,68179.0,68178.0,0.000827]
[1729388873408,0.45940083,68179.0,68178.0,0.01271129]
[1729388873640,0.45940083,68179.0,68178.0,0.000827]
[1729388873861,0.45940083,68179.0,68178.0,0.01271129]
[1729388875003,0.45939927,68179.0,68178.0,0.01271129]
[1729388875655,0.69081816,68179.0,68178.0,0.01271129]
[1729388876089,0.54414616,68179.0,68178.0,0.000827]
[1729388876344,0.69081816,68179.0,68178.0,0.000827]
[1729388876554,0.54414616,68179.0,68178.0,0.000827]
[1729388878449,0.50845819,68179.0,68178.0,0.000827]
[1729388878652,0.54414561,68179.0,68178.0,0.000827]
[1729388879895,0.54414561,68179.0,68178.0,0.01270379]
[1729388884527,0.53041968,68179.0,68178.0,0.01270379]
[1729388884748,0.54414398,68179.0,68178.0,0.01270379]
[1729388888533,0.54414398,68179.0,68178.0,0.000827]
[1729388888748,0.54414398,68179.0,68178.0,0.01270379]
[1729388889032,0.54414398,68179.0,68178.0,0.000827]
[1729388889464,0.54414398,68179.0,68178.0,0.01270379]
[1729388894491,0.54413554,68179.0,68178.0,0.01270379]
[1729388896103,0.54413554,68179.0,68178.0,0.012704]
[1729388898433,0.45938865,68179.0,68178.0,0.012704]
[1729388899277,0.45939321,68179.0,68178.0,0.012704]
[1729388900165,0.60606521,68179.0,68178.0,0.000827]
[1729388901294,0.45939321,68179.0,68178.0,0.000827]
[1729388903337,0.68376748,68179.0,68178.0,0.000827]
[1729388903583,0.53709548,68179.0,68178.0,0.000827]
[1729388905665,0.54068348,68179.0,68178.0,0.000827]
[1729388906334,0.54068767,68179.0,68178.0,0.000827]
[1729388909883,0.5406951,68179.0,68178.0,0.01270611]
[1729388910101,0.5406951,68179.0,68178.0,0.000827]
[1729388910317,0.54069512,68179.0,68178.0,0.01270611]
[1729388917018,0.50500157,68179.0,68178.0,0.01270611]
[1729388917234,0.54069454,68179.0,68178.0,0.01270611]
[1729388919039,0.46299227,68179.0,68178.0,0.01270611]
[1729388919255,0.46299227,68179.0,68178.0,0.000827]
[1729388920807,0.46299247,68179.0,68178.0,0.000827]
[1729388926144,0.63266447,68179.0,68178.0,0.000827]
[1729388927114,0.69854943,68179.0,68178.0,0.000827]
[1729388927319,0.84750858,68179.0,68178.0,0.000827]
[1729388927750,0.82554153,68179.0,68178.0,0.000827]
[1729388929270,1.1465708,68179.0,68178.0,0.000827]
[1729388929491,1.05972419,68179.0,68178.0,0.000827]
[1729388929726,1.06072419,68179.0,68178.0,0.000827]
[1729388930215,1.05872419,68179.0,68178.0,0.000827]
[1729388930425,1.06072419,68179.0,68178.0,0.000827]
[1729388930855,1.05872419,68179.0,68178.0,0.000827]
[1729388931069,1.0585918,68179.0,68178.0,0.000827]
[1729388931520,1.05853355,68179.0,68178.0,0.000827]
[1729388931723,1.02289863,68179.0,68178.0,0.000827]
[1729388931936,1.05853405,68179.0,68178.0,0.000827]
[1729388932362,1.1681994,68179.0,68178.0,0.000827]
[1729388932586,1.05853405,68179.0,68178.0,0.000827]
[1729388932818,2.30203405,68179.0,68178.0,0.000827]
[1729388933036,2.4116994,68179.0,68178.0,0.000827]
[1729388933465,2.30203405,68179.0,68178.0,0.000827]
[1729388934130,2.4116994,68179.0,68178.0,0.000827]
[1729388934560,2.30203405,68179.0,68178.0,0.000827]